bitfinex/quotes_ETHUSD_20250803
["timestamp","ask_amount","ask_price","bid_price","bid_amount"]
[1754208174167,0.001,3464.5,3464.4,0.8997]
[1754208178236,0.001,3464.5,3464.4,5.2727]
[1754208179720,0.001,3464.5,3464.4,4.373]
[1754208179918,0.001,3464.5,3464.4,6.28627613]
[1754208180126,0.001,3464.5,3464.4,4.373]
[1754208180722,0.917,3464.5,3464.4,4.373]
[1754208181792,0.4518,3464.5,3464.4,4.373]
[1754208182823,0.4518,3464.5,3464.2,0.4545]
[1754208183024,0.4518,3464.5,3464.4,4.373]
[1754208183799,0.917,3464.5,3464.4,4.373]
[1754208185128,0.4518,3464.5,3464.4,4.373]
[1754208186322,0.4518,3464.5,3464.1,0.4545]
[1754208186630,0.4508,3464.4,3464.2,4.373]
[1754208186840,0.4652,3464.4,3464.3,4.373]
[1754208187197,0.4652,3464.4,3463.9,0.002]
[1754208187420,0.001,3464.5,3464.0,5.2727]
[1754208187617,0.001,3464.5,3464.1,0.92856752]
[1754208188005,0.001,3464.5,3464.1,0.02886752]
[1754208188205,0.001,3464.5,3464.2,0.8997]
[1754208188435,0.001,3464.5,3464.3,4.373]
[1754208188599,0.001,3464.5,3464.3,5.2727]
[1754208188803,0.001,3464.5,3464.4,0.8997]
[1754208189834,0.001,3464.5,3464.1,2.23154279]
[1754208190005,0.4518,3464.5,3464.2,4.64087428]
[1754208190204,0.001,3464.5,3464.2,5.09537428]
[1754208190613,0.4518,3464.5,3464.2,5.09537428]
[1754208190827,0.001,3464.5,3464.3,4.373]
[1754208191150,0.916,3464.4,3463.9,0.4565]
[1754208191352,0.916,3464.4,3464.0,4.8275]
[1754208191513,0.4508,3464.4,3464.1,0.4545]
[1754208191846,0.001,3464.5,3464.2,0.4545]
[1754208192037,0.001,3464.5,3464.3,4.373]
[1754208192241,0.001,3464.5,3464.3,4.8182]
[1754208192425,0.001,3464.5,3464.3,4.373]
[1754208192626,0.001,3464.5,3464.4,2.67345604]
[1754208194053,0.001,3464.5,3464.4,2.22825604]
[1754208194244,0.001,3464.5,3464.4,4.8275]
[1754208194489,0.001,3464.5,3464.4,0.4545]
[1754208194646,0.001,3464.5,3464.4,4.8275]
[1754208196037,0.001,3464.5,3464.4,5.2727]
[1754208197982,0.001,3464.5,3464.4,4.8275]
[1754208198133,0.001,3464.5,3464.4,6.65827954]
[1754208199449,0.001,3464.5,3464.4,7.10347954]
[1754208203327,0.001,3464.5,3464.4,6.65827954]
[1754208203536,0.001,3464.5,3464.4,7.09757954]
[1754208205275,0.001,3464.5,3464.4,7.09957954]
[1754208208178,0.001,3464.5,3464.4,6.68527954]
[1754208208476,0.001,3464.5,3464.4,2.75157954]
[1754208208628,0.001,3464.5,3464.4,7.12357954]
[1754208209029,0.001,3464.5,3464.4,7.23930254]
[1754208211560,0.001,3464.5,3464.4,10.23930254]
[1754208216667,0.001,3464.5,3464.4,5.42800254]
[1754208216991,0.001,3464.5,3464.4,9.80200254]
[1754208217156,0.001,3464.5,3464.4,7.971223]
[1754208218075,0.001,3464.5,3464.4,4.971223]
[1754208218434,0.001,3464.5,3464.4,5.410523]
[1754208218634,0.001,3464.5,3464.4,5.43938802]
[1754208220479,0.001,3464.5,3464.4,5.410523]
[1754208220673,0.001,3464.5,3464.4,7.30243133]
[1754208222783,0.001,3464.5,3464.4,2.92843133]
[1754208222967,0.001,3464.5,3464.4,6.38263133]
[1754208223641,0.001,3464.5,3464.4,2.00963133]
[1754208223946,0.4489,3464.5,3464.4,6.38463133]
[1754208224781,0.001,3464.5,3464.4,6.38463133]
[1754208225298,0.001,3464.5,3464.4,6.86413133]
[1754208228387,0.914,3464.5,3464.4,2.00963133]
[1754208228690,0.914,3464.5,3464.4,4.375]
[1754208228860,0.4489,3464.5,3464.4,4.375]
[1754208230383,0.9164,3464.5,3464.4,0.002]
[1754208230590,0.9164,3464.5,3464.4,4.375]
[1754208232190,0.9143,3464.5,3464.4,4.375]
[1754208233682,0.4468,3464.5,3464.4,4.375]
[1754208234792,0.4468,3464.5,3464.4,0.002]
[1754208235086,0.001,3464.5,3464.4,4.8278]
[1754208235386,0.001,3464.5,3464.4,6.76800106]
[1754208235588,0.001,3464.5,3464.4,6.73913604]
[1754208235893,0.001,3464.5,3464.4,7.19163604]
[1754208236898,0.001,3464.5,3464.4,7.30735504]
[1754208240861,0.001,3464.5,3464.4,6.85485504]
[1754208243595,0.001,3464.5,3464.4,6.40105504]
[1754208243807,0.4468,3464.5,3464.4,6.40105504]
[1754208244283,0.001,3464.5,3464.4,6.40105504]
[1754208244511,0.001,3464.5,3464.4,7.30735504]
[1754208250809,0.001,3464.5,3464.4,6.85485504]
[1754208251314,0.001,3464.5,3464.4,7.30735504]
[1754208255398,0.001,3464.5,3464.4,6.85485504]
[1754208255598,0.001,3464.5,3464.4,7.30735504]
[1754208255808,0.001,3464.5,3464.4,6.40105504]
[1754208256426,0.4468,3464.5,3464.4,6.40005504]
[1754208256812,0.001,3464.5,3464.4,6.40005504]
[1754208257813,0.4468,3464.5,3464.4,6.40005504]
[1754208258610,0.001,3464.5,3464.4,6.85385504]
[1754208260429,0.4402,3464.5,3464.4,6.40005504]
[1754208261200,0.001,3464.5,3464.4,6.40005504]
[1754208261610,0.001,3464.5,3464.4,6.89235504]
[1754208263533,0.001,3464.5,3464.4,6.40005504]
[1754208263713,0.4402,3464.5,3464.4,6.40005504]
[1754208265880,0.001,3464.5,3464.4,6.40005504]
[1754208266136,0.001,3464.5,3464.4,6.89235504]
[1754208266734,0.001,3464.7,3464.4,7.36505504]
[1754208266942,0.001,3464.7,3464.5,1.62212715]
[1754208267238,0.001,3464.7,3464.6,4.40086336]
[1754208267432,0.001,3464.7,3464.6,5.80506336]
[1754208267653,0.001,3464.7,3464.6,5.3035]
[1754208267849,0.001,3464.7,3464.6,5.7762]
[1754208268037,0.001,3464.7,3464.6,7.85268875]
[1754208272241,0.001,3464.9,3464.6,7.85268875]
[1754208272445,0.001,3464.9,3464.8,13.36456035]
[1754208272612,0.001,3464.9,3464.8,17.73656035]
[1754208272813,0.001,3464.9,3464.8,18.22886035]
[1754208273033,0.001,3464.9,3464.8,20.25858479]
[1754208273327,0.001,3464.9,3464.8,21.12635079]
[1754208291442,0.001,3464.9,3464.8,21.59895079]
[1754208291977,0.001,3464.9,3464.8,21.12635079]
[1754208293075,0.001,3464.9,3464.8,20.63405079]
[1754208293572,0.9183,3464.9,3464.8,20.63405079]
[1754208293772,0.4491,3464.9,3464.8,14.23232635]
[1754208293941,0.4491,3464.9,3464.8,0.867766]
[1754208293942,0.9183,3464.9,3464.8,0.867766]
[1754208294142,0.9183,3464.9,3464.8,5.238766]
[1754208294373,0.9183,3464.9,3464.8,18.60332635]
[1754208302468,0.001,3464.9,3464.8,18.60332635]
[1754208302685,0.001,3464.9,3464.8,20.97341898]
[1754208302857,0.001,3464.9,3464.8,21.44601898]
[1754208303377,0.001,3464.9,3464.8,0.867766]
[1754208303586,0.9183,3464.9,3464.8,0.867766]
[1754208303796,0.9183,3464.9,3464.6,0.002]
[1754208304087,0.9173,3464.8,3464.7,4.921]
[1754208310275,0.9173,3464.8,3464.7,4.371]
[1754208310461,0.9173,3464.8,3464.6,0.002]
[1754208310796,0.9173,3464.7,3464.6,0.002]
[1754208311098,0.9173,3464.7,3464.6,4.373]
[1754208311694,0.4481,3464.7,3464.6,4.373]
[1754208312101,0.001,3465.1,3464.6,19.22562111]
[1754208312301,0.4481,3466.2,3465.0,13.36456035]
[1754208312523,0.4481,3466.2,3464.6,5.3674974]
[1754208312524,40.0,3466.1,3465.7,13.36456035]
[1754208312684,30.0,3466.2,3465.8,4.371]
[1754208313003,3.78554707,3466.1,3465.8,4.371]
[1754208313193,0.4692,3466.1,3465.8,4.371]
[1754208313500,0.4481,3466.0,3465.8,4.371]
[1754208314994,0.4481,3465.9,3465.8,4.371]
[1754208316400,30.4481,3466.1,3465.8,4.371]
[1754208316604,40.0,3466.7,3465.8,4.371]
[1754208316802,0.4481,3466.0,3465.8,4.371]
[1754208317791,0.4481,3465.9,3465.8,4.371]
[1754208319491,0.4481,3465.9,3465.8,5.238678]
[1754208319829,0.4518,3466.1,3465.8,5.238678]
[1754208320141,0.72224463,3466.1,3465.8,5.238678]
[1754208320270,0.72224463,3466.1,3465.8,4.371]
[1754208320473,0.72224463,3466.1,3465.9,0.867678]
[1754208320670,0.72224463,3466.1,3466.0,4.371]
[1754208320671,0.4518,3466.1,3466.0,4.371]
[1754208321122,0.4518,3466.1,3466.0,5.238678]
[1754208321893,3.0,3466.3,3466.0,5.238678]
[1754208322092,0.27044497,3466.2,3466.0,5.734578]
[1754208322280,3.0,3466.3,3466.0,4.8669]
[1754208322479,0.27044497,3466.2,3466.1,0.4906]
[1754208322676,0.27044497,3466.2,3466.1,0.9865]
[1754208322975,0.4518,3466.9,3466.1,14.79126035]
[1754208323208,30.0,3466.8,3466.2,4.8659]
[1754208323392,30.4518,3466.8,3466.3,0.4959]
[1754208323592,0.4518,3466.8,3466.4,4.37]
[1754208323800,0.4518,3466.7,3466.4,4.37]
[1754208324000,0.4518,3466.7,3466.4,4.8659]
[1754208324191,0.4518,3466.7,3466.5,0.63984]
[1754208324511,0.4518,3466.6,3466.5,0.63984]
[1754208325692,0.9424,3466.6,3466.5,0.63984]
[1754208326107,0.4518,3466.6,3466.5,0.63984]
[1754208327130,0.9424,3466.8,3466.5,0.63984]
[1754208327288,0.4906,3466.8,3466.5,0.63984]
[1754208327495,0.4518,3466.7,3466.5,0.63984]
[1754208329994,10.0,3467.2,3466.5,0.63984]
[1754208329995,3.0,3467.4,3466.5,0.63984]
[1754208330201,2.65,3467.0,3466.5,0.63984]
[1754208330406,30.0,3466.8,3466.5,0.63984]
[1754208330618,0.9424,3466.7,3466.5,0.63984]
[1754208330789,0.4518,3466.6,3466.5,0.63984]
[1754208332022,0.9424,3466.6,3466.5,0.63984]
[1754208332908,0.9424,3466.6,3466.3,4.369]
[1754208333109,30.0,3466.8,3466.3,4.369]
[1754208333306,30.0,3466.4,3466.3,5.236635]
[1754208333620,0.4518,3466.4,3466.3,0.867635]
[1754208335427,30.0,3466.6,3466.3,1.363535]
[1754208335997,30.0,3466.5,3466.3,1.363535]
[1754208336825,0.001,3466.7,3466.4,0.4959]
[1754208337241,0.001,3466.7,3466.4,0.9361]
[1754208337528,0.001,3466.7,3466.4,0.4402]
[1754208337696,0.001,3466.7,3466.5,0.4959]
[1754208337897,0.001,3466.7,3466.5,1.36349]
[1754208338103,0.001,3466.7,3466.6,0.4959]
[1754208338308,0.001,3466.7,3466.4,4.369]
[1754208338527,0.001,3466.7,3466.6,1.803655]
[1754208339529,0.001,3466.7,3466.6,1.363455]
[1754208340032,0.001,3466.7,3466.6,0.867555]
[1754208340225,0.4528,3466.7,3466.6,0.867555]
[1754208340635,0.9434,3466.7,3466.6,0.867555]
[1754208340804,0.9434,3466.7,3466.2,0.4959]
[1754208341129,0.9424,3466.6,3466.4,5.23659]
[1754208341312,0.9424,3466.6,3466.4,0.86759]
[1754208341512,0.4518,3466.6,3466.4,0.86759]
[1754208342035,0.4518,3466.5,3466.3,4.369]
[1754208342328,0.001,3466.7,3466.4,0.4906]
[1754208342528,30.4518,3466.6,3466.4,0.4906]
[1754208342721,0.4518,3466.6,3466.4,0.4906]
[1754208343802,0.48785838,3466.6,3466.4,0.4906]
[1754208344002,0.4518,3466.6,3466.4,0.4906]
[1754208344759,30.0,3466.6,3466.4,0.9865]
[1754208345534,30.0,3466.6,3466.4,0.4959]
[1754208346231,30.4518,3466.6,3466.4,0.4959]
[1754208346403,30.0,3466.6,3466.4,0.4959]
[1754208347528,30.0,3466.6,3466.5,0.4959]
[1754208348731,30.0,3466.6,3466.3,4.369]
[1754208349036,0.4518,3466.5,3466.2,0.867597]
[1754208349198,0.48786046,3466.4,3466.2,5.236597]
[1754208349538,0.48786046,3466.4,3466.1,0.4959]
[1754208349740,0.48786046,3466.4,3466.2,4.369]
[1754208350039,0.46,3466.4,3466.2,4.369]
[1754208350537,0.46,3466.4,3466.1,0.867622]
[1754208350721,0.46,3466.4,3466.1,1.339222]
[1754208350922,3.001,3466.7,3466.2,4.8406]
[1754208350923,3.461,3466.7,3466.2,4.8406]
[1754208351232,0.46,3466.6,3466.3,0.4716]
[1754208352637,0.46,3466.6,3466.4,0.4716]
[1754208353716,30.0,3466.6,3466.4,0.4716]
[1754208358236,30.0,3466.6,3466.3,0.002]
[1754208358435,3.0,3466.6,3466.5,0.4716]
[1754208360542,0.001,3466.7,3466.5,0.4716]
[1754208360741,0.001,3466.7,3466.5,4.8406]
[1754208361121,0.001,3466.7,3466.6,0.4716]
[1754208364646,0.001,3466.7,3466.6,0.9058]
[1754208365115,0.001,3466.7,3466.6,0.4716]
[1754208366124,0.001,3466.7,3466.4,0.4342]
[1754208366325,0.001,3466.7,3466.5,4.369]
[1754208366644,0.001,3466.7,3466.5,4.8406]
[1754208368329,0.001,3466.7,3466.6,0.4716]
[1754208368528,0.001,3466.7,3466.3,0.002]
[1754208368529,0.9322,3466.6,3466.3,0.002]
[1754208368724,0.9322,3466.5,3466.3,0.002]
[1754208369314,0.46,3466.5,3466.3,0.002]
[1754208369836,3.0,3466.6,3466.3,0.002]
[1754208370036,0.46,3466.4,3466.3,0.002]
[1754208370351,1.89693,3466.4,3466.3,0.002]
[1754208370914,2.16774075,3466.4,3466.3,0.002]
[1754208371950,1.69554075,3466.4,3466.3,0.002]
[1754208372150,2.16774075,3466.4,3466.3,0.002]
[1754208372350,1.69554075,3466.4,3466.3,0.002]
[1754208373131,11.23554075,3466.4,3466.3,0.002]
[1754208373753,11.23554075,3466.4,3466.3,0.4736]
[1754208373939,10.27081075,3466.4,3466.3,0.4736]
[1754208374538,0.270777,3466.4,3466.3,0.4736]
[1754208374773,0.270777,3466.6,3466.3,0.9078]
[1754208374948,0.270777,3466.5,3466.4,0.9058]
[1754208375453,3.0,3466.6,3466.4,0.9058]
[1754208375854,0.001,3466.7,3466.5,0.9058]
[1754208376019,0.27075568,3466.6,3466.3,0.002]
[1754208376223,0.001,3466.7,3466.3,0.002]
[1754208376642,0.001,3466.7,3466.4,0.9058]
[1754208376845,0.001,3466.7,3466.3,0.002]
[1754208377153,0.001,3466.7,3466.4,0.9058]
[1754208377457,0.001,3466.7,3466.5,0.90513429]
[1754208377651,0.001,3466.7,3466.3,0.002]
[1754208377652,0.001,3466.7,3466.6,0.4716]
[1754208379338,0.001,3466.7,3466.6,0.9058]
[1754208379546,0.001,3466.7,3466.6,0.4342]
[1754208379757,0.001,3466.7,3466.6,0.9249]
[1754208381865,0.001,3466.7,3466.6,0.9607]
[1754208389874,0.001,3466.7,3466.5,0.270678]
[1754208390176,0.4756,3466.7,3466.3,0.9627]
[1754208390345,0.4756,3466.7,3466.4,0.4907]
[1754208392554,0.4756,3466.7,3466.5,0.4907]
[1754208392755,0.001,3466.7,3466.5,0.4907]
[1754208392957,0.001,3466.7,3466.6,0.4907]
[1754208394389,0.001,3466.7,3466.6,0.9607]
[1754208394841,0.001,3466.7,3466.6,0.47]
[1754208395039,0.001,3466.7,3466.6,0.4907]
[1754208395242,0.001,3466.7,3466.6,0.9607]
[1754208396557,0.001,3466.7,3466.6,0.4907]
[1754208396891,0.001,3466.7,3466.6,0.9607]
[1754208397656,0.001,3466.7,3466.6,1.231365]
[1754208398747,0.001,3466.7,3466.6,0.270665]
[1754208398953,0.001,3466.7,3466.4,0.47]
[1754208399179,0.001,3466.7,3466.5,0.270665]
[1754208399786,0.001,3466.7,3466.6,0.9607]
[1754208400283,0.001,3466.7,3466.6,0.47]
[1754208400444,0.001,3466.7,3466.6,0.9607]
[1754208406151,0.001,3466.7,3466.5,4.368]
[1754208406356,0.001,3466.7,3466.6,0.4907]
[1754208406993,0.001,3466.7,3466.6,0.9607]
[1754208410765,0.001,3466.7,3466.6,1.231493]
[1754208413518,0.001,3466.7,3466.6,0.761493]
[1754208414066,0.001,3466.7,3466.5,4.368]
[1754208414315,0.001,3466.7,3466.5,4.8385]
[1754208414511,0.001,3466.7,3466.4,0.867462]
[1754208414680,0.4354,3466.6,3466.4,4.367]
[1754208415370,0.4354,3466.5,3466.4,4.367]
[1754208416482,0.499,3466.7,3466.4,4.367]
[1754208416798,0.4354,3466.6,3466.4,4.367]
[1754208418588,0.499,3466.7,3466.4,4.367]
[1754208418789,0.4354,3466.6,3466.4,4.367]
[1754208419219,0.4354,3466.5,3466.3,4.369]
[1754208419391,0.9334,3466.5,3466.3,4.369]
[1754208419722,0.4354,3466.5,3466.3,4.369]
[1754208419923,0.4354,3466.4,3466.3,0.002]
[1754208420224,1.36290046,3466.4,3466.3,0.002]
[1754208420402,0.96946046,3466.4,3466.3,0.002]
[1754208420602,0.9334,3466.4,3466.3,0.002]
[1754208420999,3.0,3466.5,3466.3,0.002]
[1754208421193,43.0,3466.4,3466.3,0.002]
[1754208421395,5.86824707,3466.4,3466.3,0.4725]
[1754208421590,3.0,3466.4,3466.3,0.002]
[1754208422310,3.9334,3466.4,3466.3,0.002]
[1754208422488,33.9334,3466.4,3466.3,0.002]
[1754208422694,38.8504,3466.4,3466.3,0.002]
[1754208422901,39.12110691,3466.4,3466.3,0.002]
[1754208423086,41.98935398,3466.4,3466.3,0.002]
[1754208423292,43.72535398,3466.4,3466.3,0.002]
[1754208427126,43.72477177,3466.4,3466.3,0.002]
[1754208428933,43.7245119,3466.4,3466.3,0.002]
[1754208431930,43.72422011,3466.4,3466.3,0.002]
[1754208433024,44.19472011,3466.4,3466.3,0.002]
[1754208443258,39.82772011,3466.4,3466.3,0.002]
[1754208443432,42.79271738,3466.4,3466.3,0.002]
[1754208443638,49.93471738,3466.4,3466.3,0.002]
[1754208443863,50.37121738,3466.4,3466.3,0.002]
[1754208444239,50.82531738,3466.4,3466.3,0.002]
[1754208444474,50.82539154,3466.4,3466.3,0.002]
[1754208452201,50.82618888,3466.4,3466.3,0.002]
[1754208453102,49.93558888,3466.4,3466.3,0.002]
[1754208453298,51.56107914,3466.4,3466.3,0.002]
[1754208453507,51.20337355,3466.4,3466.3,0.002]
[1754208454215,50.82618888,3466.4,3466.3,0.002]
[1754208454395,47.82618888,3466.4,3466.3,0.002]
[1754208456290,50.82618888,3466.4,3466.3,0.002]
[1754208459190,45.01658888,3466.4,3466.3,0.4548]
[1754208459503,43.51734181,3466.4,3466.3,0.8886]
[1754208459696,47.06734181,3466.4,3466.3,0.8886]
[1754208463726,47.35664181,3466.4,3466.3,0.8886]
[1754208463896,47.06734181,3466.4,3466.3,0.8886]
[1754208464231,49.93558888,3466.4,3466.3,0.8886]
[1754208466257,42.69834181,3466.4,3466.3,0.4548]
[1754208466454,47.06734181,3466.4,3466.3,0.8886]
[1754208469743,47.06734181,3466.4,3466.3,0.002]
[1754208470242,47.06734181,3466.4,3466.3,0.4941]
[1754208470454,47.06734181,3466.4,3466.3,0.002]
[1754208470654,50.85828888,3466.4,3466.3,0.002]
[1754208474946,51.23547355,3466.4,3466.3,0.002]
[1754208477074,50.85828888,3466.4,3466.3,0.002]
[1754208478976,45.56658888,3466.4,3466.3,0.002]
[1754208479160,49.93558888,3466.4,3466.3,0.4941]
[1754208479346,45.01658888,3466.4,3466.3,0.9445]
[1754208479546,42.14834181,3466.4,3466.3,0.9445]
[1754208479879,47.06834181,3466.4,3466.3,0.9445]
[1754208482770,47.06734181,3466.4,3466.3,0.9445]
[1754208482970,42.69834181,3466.4,3466.3,0.9445]
[1754208483379,47.06734181,3466.4,3466.3,0.9445]
[1754208485065,39.92534181,3466.4,3466.3,0.9445]
[1754208485465,39.92634181,3466.4,3466.3,0.9445]
[1754208485988,30.27134181,3466.4,3466.3,0.9445]
[1754208486151,34.64050074,3466.4,3466.3,0.9445]
[1754208486673,37.64050074,3466.4,3466.3,0.9445]
[1754208487333,34.64050074,3466.4,3466.3,0.9445]
[1754208489179,30.001,3466.4,3466.3,0.9445]
[1754208489539,34.64025521,3466.4,3466.3,0.9445]
[1754208489937,0.001,3466.4,3466.3,0.9445]
[1754208492601,30.001,3466.4,3466.3,0.9445]
[1754208494573,34.37,3466.4,3466.3,0.9445]
[1754208495296,37.37,3466.4,3466.3,0.9445]
[1754208495686,4.37,3466.4,3466.3,0.9445]
[1754208495990,3.001,3466.4,3466.3,0.9445]
[1754208496190,0.001,3466.4,3466.3,0.9445]
[1754208498391,0.001,3466.4,3466.3,1.060178]
[1754208498560,0.001,3466.4,3466.3,0.9445]
[1754208499783,0.001,3466.4,3466.3,14.30906035]
[1754208500098,10.0,3468.7,3466.4,4.44247384]
[1754208500259,0.26931577,3468.6,3466.4,2.38577384]
[1754208500460,0.26931577,3468.6,3466.9,13.36456035]
[1754208500461,0.4463,3468.5,3466.9,13.36456035]
[1754208500720,3.0,3468.2,3467.0,4.384]
[1754208500860,3.0,3468.2,3467.0,0.9433]
[1754208501059,30.0,3467.7,3467.1,0.4826]
[1754208501294,3.55,3468.0,3467.1,1.810677]
[1754208501496,40.0,3467.5,3467.1,0.9433]
[1754208501698,30.0,3467.5,3467.2,0.9433]
[1754208502012,30.0,3467.5,3467.3,0.9433]
[1754208502161,33.0,3467.5,3467.4,0.9433]
[1754208502358,3.0,3467.5,3467.4,0.4826]
[1754208502562,3.0,3467.5,3466.5,5.72165604]
[1754208502563,40.0,3467.1,3466.8,0.4607]
[1754208502762,30.0,3467.1,3466.9,0.4607]
[1754208503009,43.0,3467.1,3467.0,0.4607]
[1754208503191,3.0,3467.1,3467.0,0.4607]
[1754208503487,3.0,3467.1,3467.0,0.9433]
[1754208503687,0.4463,3467.7,3467.0,0.9433]
[1754208503688,3.0,3467.6,3467.0,0.9433]
[1754208503896,3.0,3467.6,3467.0,0.4826]
[1754208503897,40.0,3467.3,3467.0,0.4826]
[1754208504112,3.0,3467.0,3466.7,0.9433]
[1754208504327,3.0,3467.0,3466.3,0.620136]
[1754208504489,0.4463,3467.2,3466.7,0.4826]
[1754208504674,3.0,3466.8,3466.4,0.4607]
[1754208504871,3.0,3466.6,3466.3,0.002]
[1754208505173,3.0,3466.4,3466.3,0.002]
[1754208505415,33.0,3466.4,3466.3,0.002]
[1754208506119,33.0,3466.4,3466.3,0.4846]
[1754208506919,0.4846,3467.9,3466.3,0.4846]
[1754208506920,4.393,3466.7,3466.3,0.9453]
[1754208507121,4.393,3466.7,3466.4,0.9433]
[1754208507280,4.393,3466.7,3466.5,0.9433]
[1754208507479,4.393,3466.7,3466.3,0.002]
[1754208507681,4.393,3466.7,3466.4,0.9433]
[1754208507919,4.393,3466.7,3466.5,0.9433]
[1754208508122,3.0,3467.0,3466.3,0.002]
[1754208508284,30.0,3466.8,3466.6,0.9433]
[1754208508619,30.0,3466.8,3466.7,2.37408604]
[1754208509111,4.395,3466.9,3466.7,2.37408604]
[1754208509412,4.395,3466.9,3466.8,0.9433]
[1754208511420,4.395,3466.9,3466.7,1.43078604]
[1754208511623,4.395,3466.9,3466.5,0.4826]
[1754208511825,3.0360563,3466.8,3466.5,0.4826]
[1754208511976,3.4823563,3466.8,3466.5,0.4826]
[1754208512186,40.0,3466.7,3466.3,0.002]
[1754208512496,30.0,3466.6,3466.3,0.4846]
[1754208512679,30.0,3466.5,3466.3,0.4846]
[1754208512878,30.0,3466.5,3466.3,0.002]
[1754208513079,30.0,3466.5,3466.4,0.4826]
[1754208516785,3.0,3466.4,3466.3,0.002]
[1754208518620,7.392,3466.4,3466.3,0.002]
[1754208522417,7.392,3466.4,3466.3,0.4846]
[1754208523314,3.0,3466.4,3466.3,0.4846]
[1754208523486,7.39,3466.4,3466.3,0.9453]
[1754208523686,3.0,3466.4,3466.3,0.9453]
[1754208524125,3.0,3466.4,3466.3,0.4846]
[1754208524486,33.0,3466.4,3466.3,0.002]
[1754208524818,33.9271,3466.4,3466.3,0.002]
[1754208524994,33.4463,3466.4,3466.3,0.002]
[1754208525394,33.0,3466.4,3466.3,0.002]
[1754208525694,33.0,3466.4,3466.3,0.4846]
[1754208526017,37.8373,3466.4,3466.3,0.002]
[1754208526611,38.3181,3466.4,3466.3,0.002]
[1754208526986,37.8373,3466.4,3466.3,0.002]
[1754208527582,38.3181,3466.4,3466.3,0.002]
[1754208528420,41.73634707,3466.4,3466.3,0.002]
[1754208528825,33.4463,3466.4,3466.3,0.002]
[1754208529027,37.39,3466.4,3466.3,0.002]
[1754208529416,38.3171,3466.4,3466.3,0.002]
[1754208530437,37.8363,3466.4,3466.3,0.002]
[1754208531701,35.1823,3466.4,3466.3,0.002]
[1754208531901,37.392,3466.4,3466.3,0.002]
[1754208532137,33.0,3466.4,3466.3,0.002]
[1754208532508,37.392,3466.4,3466.3,0.002]
[1754208536946,30.0,3466.4,3466.3,0.002]
[1754208537125,34.39,3466.4,3466.3,0.002]
[1754208537947,4.39,3466.4,3466.3,0.002]
[1754208538147,4.39,3466.4,3466.3,0.9278]
[1754208539321,4.389,3466.4,3466.3,0.9278]
[1754208540312,7.389,3466.4,3466.3,0.002]
[1754208540953,3.0,3466.4,3466.3,0.002]
[1754208541151,7.389,3466.4,3466.3,0.002]
[1754208541350,3.0,3466.4,3466.3,0.002]
[1754208542050,3.0,3466.4,3466.3,0.4529]
[1754208542254,3.0,3466.4,3466.3,0.002]
[1754208542634,3.0,3466.4,3466.3,0.4529]
[1754208542831,33.4619,3466.4,3466.3,0.002]
[1754208544736,33.0,3466.4,3466.3,0.002]
[1754208545857,33.0,3466.4,3466.3,0.4529]
[1754208546641,33.0,3466.4,3466.3,0.9278]
[1754208547029,3.0,3466.4,3466.3,0.9278]
[1754208547838,30.0,3466.5,3466.3,1.1073418]
[1754208548040,30.0,3466.5,3466.4,0.9258]
[1754208549226,4.936,3466.5,3466.3,0.002]
[1754208549431,33.0,3466.4,3466.3,0.002]
[1754208551127,33.0,3466.4,3466.3,0.4529]
[1754208551583,30.0,3466.4,3466.3,0.9278]
[1754208551936,30.27076122,3466.4,3466.3,0.9278]
[1754208552157,0.27076122,3466.4,3466.3,0.9278]
[1754208553186,0.02,3680.9,3466.3,0.9278]
[1754208553187,0.27076122,3466.6,3466.3,14.29236035]
[1754208553387,0.27076122,3466.5,3466.4,2.35503604]
[1754208554941,0.27076122,3466.9,3466.4,2.35503604]
[1754208555258,0.27076122,3466.8,3466.5,0.9258]
[1754208555478,0.27076122,3466.7,3466.6,1.65890854]
[1754208555646,0.27076122,3466.7,3466.6,2.58470854]
[1754208556374,0.27076122,3467.0,3466.6,2.58470854]
[1754208556541,0.001,3467.1,3466.6,2.58470854]
[1754208556542,0.27076122,3466.9,3466.7,14.29036035]
[1754208556746,0.27076122,3466.8,3466.7,13.36456035]
[1754208556954,0.27076122,3467.0,3466.7,13.36456035]
[1754208557366,0.27076122,3467.0,3466.8,0.9258]
[1754208557548,0.27076122,3467.0,3466.7,13.63532135]
[1754208557747,0.27076122,3467.0,3466.9,0.9258]
[1754208557974,0.27076122,3467.0,3466.9,2.98710299]
[1754208558643,0.001,3467.1,3466.9,3.0159472]
[1754208558842,0.001,3467.1,3467.0,5.3198]
[1754208559658,0.001,3467.1,3467.0,5.34864338]
[1754208559878,0.001,3467.1,3467.0,5.61940538]
[1754208560064,0.001,3467.1,3467.0,7.6334722]
[1754208561876,0.001,3467.2,3467.0,7.6334722]
[1754208562052,0.001,3467.5,3467.1,14.33066035]
[1754208562452,0.001,3467.5,3467.2,0.9661]